fUSD/lending_fUSD_20250119
["ID","MTS","AMOUNT","RATE_DAILY","PERIOD"]
[349622616,1737330655684,-1219.2,0.00021308,2]
[349622617,1737330655693,-524.65,0.00021309,2]
[349622618,1737330655706,-500.0,0.00021309,2]
[349622619,1737330655717,-500.0,0.00021309,2]
[349622620,1737330655727,-510.28,0.00021309,2]
[349622621,1737330655737,-500.0,0.00021309,2]
[349622622,1737330655747,-500.0,0.00021309,2]
[349622623,1737330655756,-500.0,0.00021309,2]
[349622624,1737330655765,-500.0,0.00021309,2]
[349622625,1737330655775,-311.14296818,0.00021309,2]
[349622626,1737330655785,-500.0,0.00021309,2]
[349622627,1737330655794,-500.0,0.00021309,2]
[349622628,1737330655804,-500.0,0.00021309,2]
[349622629,1737330655814,-500.0,0.00021309,2]
[349622630,1737330655823,-500.0,0.00021309,2]
[349622631,1737330655832,-500.0,0.00021309,2]
[349622632,1737330655841,-500.0,0.00021309,2]
[349622633,1737330655851,-500.0,0.00021309,2]
[349622634,1737330655860,-500.0,0.00021309,2]
[349622635,1737330655870,-500.0,0.00021309,2]
[349622636,1737330655879,-500.0,0.00021309,2]
[349622637,1737330655888,-500.0,0.00021309,2]
[349622638,1737330655897,-500.0,0.00021309,2]
[349622639,1737330655906,-500.0,0.00021309,2]
[349622640,1737330655915,-500.0,0.00021309,2]
[349622641,1737330655926,-420.68,0.00021309,2]
[349622642,1737330655935,-557.4,0.00021309,2]
[349622643,1737330655945,-500.0,0.00021309,2]
[349622644,1737330655957,-500.0,0.00021309,2]
[349622645,1737330655968,-500.0,0.00021309,2]
[349622646,1737330655983,-500.0,0.00021309,2]
[349622647,1737330656002,-500.0,0.00021309,2]
[349622648,1737330656012,-500.0,0.00021309,2]
[349622649,1737330656021,-500.0,0.00021309,2]
[349622650,1737330656030,-500.0,0.00021309,2]
[349622651,1737330656040,-500.0,0.00021309,2]
[349622652,1737330656049,-500.0,0.00021309,2]
[349622653,1737330656058,-500.0,0.00021309,2]
[349622654,1737330656067,-500.0,0.00021309,2]
[349622655,1737330656076,-500.0,0.00021309,2]
[349622656,1737330656085,-500.0,0.00021309,2]
[349622657,1737330656095,-1308.99,0.00021309,2]
[349622658,1737330656109,-500.0,0.00021309,2]
[349622659,1737330656124,-606.63,0.00021309,2]
[349622660,1737330656136,-500.0,0.00021309,2]
[349622661,1737330656146,-1986.62,0.00021309,2]
[349622662,1737330656156,-500.0,0.00021309,2]
[349622663,1737330656165,-500.0,0.00021309,2]
[349622664,1737330656174,-500.0,0.00021309,2]
[349622665,1737330656184,-1009.8,0.00021309,2]
[349622666,1737330656194,-325.63529406,0.00021309,2]
[349622667,1737330656211,-2149.63,0.00021309,2]
[349622668,1737330656220,-173.1131247,0.00021309,2]
[349622669,1737330656231,-500.0,0.00021309,2]
[349622670,1737330656240,-713.89,0.00021309,2]
[349622671,1737330656250,-884.71,0.00021309,2]
[349622672,1737330656259,-500.0,0.00021309,2]
[349622673,1737330656269,-500.0,0.00021309,2]
[349622674,1737330656279,-2029.73,0.00021309,2]
[349622675,1737330656288,-500.0,0.00021309,2]
[349622676,1737330656298,-500.0,0.00021309,2]
[349622677,1737330656307,-640.47,0.00021309,2]
[349622678,1737330656318,-500.0,0.00021309,2]
[349622679,1737330656327,-1116.22,0.00021309,2]
[349622680,1737330656338,-1752.28,0.00021309,2]
[349622681,1737330656347,-794.49,0.00021309,2]
[349622682,1737330656357,-500.0,0.00021309,2]
[349622683,1737330656367,-3012.1,0.00021309,2]
[349622684,1737330656376,-687.59,0.00021309,2]
[349622685,1737330656385,-742.97,0.00021309,2]
[349622686,1737330656395,-1315.8,0.00021309,2]
[349622687,1737330656405,-500.0,0.00021309,2]
[349622688,1737330656415,-738.6,0.00021309,2]
[349622689,1737330656424,-1337.5,0.00021309,2]
[349622690,1737330656435,-538.08,0.00021309,2]
[349622691,1737330656444,-500.0,0.00021309,2]
[349622692,1737330656461,-1154.28,0.00021309,2]
[349622693,1737330656471,-586.93,0.00021309,2]
[349622694,1737330656481,-2419.72,0.00021309,2]
[349622695,1737330656490,-1243.34,0.00021309,2]
[349622696,1737330656500,-684.1,0.00021309,2]
[349622697,1737330656510,-1396.29,0.00021309,2]
[349622698,1737330656520,-765.77,0.00021309,2]
[349622699,1737330656530,-500.0,0.00021309,2]
[349622700,1737330656540,-554.76,0.00021309,2]
[349622701,1737330656550,-629.46,0.00021309,2]
[349622702,1737330656559,-500.0,0.00021309,2]
[349622703,1737330656568,-713.57,0.00021309,2]
[349622704,1737330656578,-500.0,0.00021309,2]
[349622705,1737330656587,-2188.94,0.00021309,2]
[349622706,1737330656596,-756.18,0.00021309,2]
[349622707,1737330656605,-500.0,0.00021309,2]
[349622708,1737330656614,-500.0,0.0002131,2]
[349622709,1737330656625,-500.0,0.0002131,2]
[349622710,1737330656637,-196.36623777,0.0002131,2]
[349622711,1737330656646,-500.0,0.0002131,2]
[349622712,1737330656655,-500.0,0.0002131,2]
[349622713,1737330656666,-500.0,0.0002131,2]
[349622714,1737330656675,-500.0,0.0002131,2]
[349622715,1737330656685,-500.0,0.0002131,2]
[349622716,1737330656694,-500.0,0.0002131,2]
[349622717,1737330656710,-559.56610055,0.0002131,2]
[349622718,1737330656720,-500.0,0.0002131,2]
[349622719,1737330656729,-500.0,0.0002131,2]
[349622720,1737330656738,-500.0,0.0002131,2]
[349622721,1737330656747,-500.0,0.0002131,2]
[349622722,1737330656757,-500.0,0.0002131,2]
[349622723,1737330656766,-500.0,0.0002131,2]
[349622724,1737330656776,-500.0,0.0002131,2]
[349622725,1737330656787,-500.0,0.0002131,2]
[349622726,1737330656797,-500.0,0.0002131,2]
[349622727,1737330656806,-500.0,0.0002131,2]
[349622728,1737330656816,-500.0,0.00021335,2]
[349622729,1737330656826,-500.0,0.00021335,2]
[349622730,1737330656835,-500.0,0.00021335,2]
[349622731,1737330656844,-500.0,0.00021389,2]
[349622732,1737330656854,-521.62737008,0.00021442,2]
[349622733,1737330656863,-337.14997497,0.00021453,2]
[349622734,1737330656872,-271.3,0.00021483,2]
[349622735,1737330656882,-4153.45581951,0.000215,2]
[349622736,1737330656891,-166.80627001,0.00021503,2]
[349622737,1737330656901,-420.0032,0.00021509,2]
[349622738,1737330656910,-500.0,0.00021529,2]
[349622739,1737330656920,-500.0,0.00021529,2]
[349622740,1737330656929,-500.0,0.00021529,2]
[349622741,1737330656939,-349.3100346,0.00021529,2]
[349622742,1737330656948,-500.0,0.00021529,2]
[349622743,1737330656962,-500.0,0.00021529,2]
[349622744,1737330656976,-500.0,0.00021529,2]
[349622745,1737330656989,-500.0,0.00021529,2]
[349622746,1737330657003,-500.0,0.00021529,2]
[349622747,1737330657012,-420.278442,0.00021529,2]
[349622748,1737330657022,-500.0,0.00021529,2]
[349622749,1737330657031,-500.0,0.00021529,2]
[349622750,1737330657041,-500.0,0.00021529,2]
[349622751,1737330657050,-547.399141,0.00021529,2]
[349622752,1737330657059,-500.0,0.00021529,2]
[349622753,1737330657069,-500.0,0.00021529,2]
[349622754,1737330657078,-500.0,0.00021529,2]
[349622755,1737330657087,-500.0,0.00021529,2]
[349622756,1737330657096,-500.0,0.00021529,2]
[349622757,1737330657105,-500.0,0.00021529,2]
[349622758,1737330657114,-500.0,0.00021529,2]
[349622759,1737330657123,-500.0,0.00021529,2]
[349622760,1737330657133,-541.4,0.00021529,2]
[349622761,1737330657144,-648.63,0.00021529,2]
[349622762,1737330657154,-500.0,0.00021529,2]
[349622763,1737330657164,-500.0,0.00021529,2]
[349622764,1737330657173,-500.0,0.00021529,2]
[349622765,1737330657183,-1060.96,0.00021529,2]
[349622766,1737330657192,-500.0,0.00021529,2]
[349622767,1737330657205,-500.0,0.00021529,2]
[349622768,1737330657215,-500.0,0.00021529,2]
[349622769,1737330657224,-799.96,0.00021529,2]
[349622770,1737330657233,-500.0,0.0002153,2]
[349622771,1737330657242,-500.0,0.0002153,2]
[349622772,1737330657251,-1862.0,0.00021554,2]
[349622773,1737330657260,-907.0,0.00021554,2]
[349622774,1737330657270,-820.0,0.00021554,2]
[349622775,1737330657279,-2945.0,0.00021554,2]
[349622776,1737330657288,-1260.0,0.00021554,2]
[349622777,1737330657296,-537.0,0.00021554,2]
[349622778,1737330657305,-3981.0,0.00021554,2]
[349622779,1737330657314,-150.0,0.00021554,2]
[349622780,1737330657323,-150.0,0.00021554,2]
[349622781,1737330657333,-3893.0,0.00021554,2]
[349622782,1737330657344,-163.3233948,0.00021557,2]
[349622783,1737330657355,-500.0,0.00021582,2]
[349622784,1737330657364,-104.0517516,0.00021582,2]
[349622785,1737330657380,-395.9482484,0.00021582,2]
[349622786,1737330657390,-103.3267516,0.00021582,2]
[349622787,1737330657401,-396.6732484,0.00021582,2]
[349622788,1737330657410,-500.0,0.00021582,2]
[349622789,1737330657420,-513.16,0.00021582,2]
[349622790,1737330657429,-500.0,0.00021582,2]
[349622791,1737330657440,-500.0,0.00021582,2]
[349622792,1737330657450,-2716.12,0.00021582,2]
[349622793,1737330657462,-697.66,0.00021582,2]
[349622794,1737330657471,-2200.29,0.00021582,2]
[349622795,1737330657480,-500.0,0.00021582,2]
[349622796,1737330657490,-571.27,0.00021582,2]
[349622797,1737330657500,-20.3966634,0.00021582,2]
[349622798,1737330657511,-402.672288,0.00021582,2]
[349622799,1737330657522,-76.9310486,0.00021582,2]
[349622800,1737330657532,-500.0,0.00021582,2]
[349622801,1737330657541,-500.0,0.00021582,2]
[349622802,1737330657551,-202.026868,0.00021582,2]
[349622803,1737330657560,-1108.47,0.00021582,2]
[349622804,1737330657569,-500.0,0.00021582,2]
[349622805,1737330657579,-1219.2,0.00021582,2]
[349622806,1737330657588,-524.65,0.00021583,2]
[349622807,1737330657598,-500.0,0.00021583,2]
[349622808,1737330657609,-500.0,0.00021583,2]
[349622809,1737330657619,-510.28,0.00021583,2]
[349622810,1737330657630,-500.0,0.00021583,2]
[349622811,1737330657639,-500.0,0.00021583,2]
[349622812,1737330657651,-290.9208488,0.00021583,2]
[349622813,1737330657660,-500.0,0.00021583,2]
[349622814,1737330657669,-500.0,0.00021583,2]
[349622815,1737330657679,-500.0,0.00021583,2]
[349622816,1737330657688,-500.0,0.00021583,2]
[349622817,1737330657698,-500.0,0.00021583,2]
[349622818,1737330657712,-371.96,0.00021583,2]
[349622819,1737330657723,-500.0,0.00021583,2]
[349622820,1737330657732,-500.0,0.00021583,2]
[349622821,1737330657742,-500.0,0.00021583,2]
[349622822,1737330657751,-500.0,0.00021583,2]
[349622823,1737330657761,-500.0,0.00021583,2]
[349622824,1737330657770,-500.0,0.00021583,2]
[349622825,1737330657779,-234.48,0.00021583,2]
[349622826,1737330657788,-378.64494187,0.00021583,2]
[349622827,1737330657797,-500.0,0.00021583,2]
[349622828,1737330657806,-500.0,0.00021583,2]
[349622829,1737330657816,-500.0,0.00021583,2]
[349622830,1737330657825,-500.0,0.00021583,2]
[349622831,1737330657834,-500.0,0.00021583,2]
[349622832,1737330657844,-500.0,0.00021583,2]
[349622833,1737330657853,-500.0,0.00021583,2]
[349622834,1737330657862,-500.0,0.00021583,2]
[349622835,1737330657872,-500.0,0.00021583,2]
[349622836,1737330657882,-500.0,0.00021583,2]
[349622837,1737330657891,-500.0,0.00021583,2]
[349622838,1737330657900,-500.0,0.00021583,2]
[349622839,1737330657909,-500.0,0.00021583,2]
[349622840,1737330657918,-500.0,0.00021583,2]
[349622841,1737330657927,-500.0,0.00021583,2]
[349622842,1737330657938,-500.0,0.00021583,2]
[349622843,1737330657948,-1308.99,0.00021583,2]
[349622844,1737330657959,-500.0,0.00021583,2]
[349622845,1737330657968,-606.63,0.00021583,2]
[349622846,1737330658096,-500.0,0.00021583,2]
[349622847,1737330658107,-1986.62,0.00021583,2]
[349622848,1737330658119,-171.5959377,0.00021583,2]
[349622849,1737330658128,-500.0,0.00021583,2]
[349622850,1737330658138,-500.0,0.00021583,2]
[349622851,1737330658148,-1009.8,0.00021583,2]
[349622852,1737330658158,-2149.63,0.00021583,2]
[349622853,1737330658167,-500.0,0.00021583,2]
[349622854,1737330658177,-713.89,0.00021583,2]
[349622855,1737330658186,-884.71,0.00021583,2]
[349622856,1737330658200,-500.0,0.00021583,2]
[349622857,1737330658214,-500.0,0.00021583,2]
[349622858,1737330658223,-2029.73,0.00021583,2]
[349622859,1737330658233,-500.0,0.00021583,2]
[349622860,1737330658243,-500.0,0.00021583,2]
[349622861,1737330658252,-640.47,0.00021583,2]
[349622862,1737330658261,-500.0,0.00021583,2]
[349622863,1737330658270,-1116.22,0.00021583,2]
[349622864,1737330658279,-1752.28,0.00021583,2]
[349622865,1737330658288,-794.49,0.00021583,2]
[349622866,1737330658297,-500.0,0.00021583,2]
[349622867,1737330658306,-3012.1,0.00021583,2]
[349622868,1737330658316,-687.59,0.00021583,2]
[349622869,1737330658325,-742.97,0.00021583,2]
[349622870,1737330658334,-1315.8,0.00021583,2]
[349622871,1737330658343,-500.0,0.00021583,2]
[349622872,1737330658352,-738.6,0.00021583,2]
[349622873,1737330658361,-1337.5,0.00021583,2]
[349622874,1737330658370,-538.08,0.00021583,2]
[349622875,1737330658379,-231.36,0.00021583,2]
[349622876,1737330658389,-1154.28,0.00021583,2]
[349622877,1737330658398,-586.93,0.00021583,2]
[349622878,1737330658407,-2419.72,0.00021583,2]
[349622879,1737330658416,-1243.34,0.00021583,2]
[349622880,1737330658426,-684.1,0.00021583,2]
[349622881,1737330658437,-1396.29,0.00021583,2]
[349622882,1737330658447,-765.77,0.00021583,2]
[349622883,1737330658460,-500.0,0.00021583,2]
[349622884,1737330658470,-554.76,0.00021583,2]
[349622885,1737330658479,-629.46,0.00021583,2]
[349622886,1737330658488,-500.0,0.00021583,2]
[349622887,1737330658498,-713.57,0.00021583,2]
[349622888,1737330658507,-500.0,0.00021583,2]
[349622889,1737330658516,-2188.94,0.00021583,2]
[349622890,1737330658525,-90.34785012,0.00021583,2]
[349622891,1737330658538,-665.83214988,0.00021583,2]
[349622892,1737330658547,-500.0,0.00021583,2]
[349622893,1737330658556,-500.0,0.00021584,2]
[349622894,1737330658565,-287.16,0.00021584,2]
[349622895,1737330658574,-451.72288032,0.00021584,2]
[349622896,1737330658583,-500.0,0.00021584,2]
[349622897,1737330658592,-500.0,0.00021584,2]
[349622898,1737330658602,-500.0,0.00021584,2]
[349622899,1737330658611,-500.0,0.00021584,2]
[349622900,1737330658623,-500.0,0.00021584,2]
[349622901,1737330658637,-500.0,0.00021584,2]
[349622902,1737330658646,-500.0,0.00021584,2]
[349622903,1737330658655,-500.0,0.00021584,2]
[349622904,1737330658664,-500.0,0.00021584,2]
[349622905,1737330658675,-195.34914234,0.00021584,2]
[349622906,1737330658684,-500.0,0.00021584,2]
[349622907,1737330658695,-500.0,0.00021584,2]
[349622908,1737330658709,-500.0,0.00021584,2]
[349622909,1737330658719,-500.0,0.00021584,2]
[349622910,1737330658729,-500.0,0.00021584,2]
[349622911,1737330658738,-500.0,0.00021609,2]
[349622912,1737330658748,-500.0,0.00021609,2]
[349622913,1737330658757,-500.0,0.00021609,2]
[349622914,1737330658767,-500.0,0.00021663,2]
[349622915,1737330658777,-500.0,0.00021663,2]
[349622916,1737330658787,-521.62737008,0.00021671,2]
[349622917,1737330658797,-166.80627001,0.00021701,2]
[349622918,1737330658806,-2185.93402832,0.00021752,2]
[349622919,1737330658816,-3000.0,0.0002178,2]
[349622920,1737330658825,-500.0,0.00021803,2]
[349622921,1737330658835,-500.0,0.00021803,2]
[349622922,1737330658844,-500.0,0.00021803,2]
[349622923,1737330658854,-500.0,0.00021803,2]
[349622924,1737330658864,-500.0,0.00021803,2]
[349622925,1737330658873,-500.0,0.00021803,2]
[349622926,1737330658883,-500.0,0.00021803,2]
[349622927,1737330658891,-420.278442,0.00021803,2]
[349622928,1737330658901,-500.0,0.00021803,2]
[349622929,1737330658910,-547.399141,0.00021803,2]
[349622930,1737330658920,-500.0,0.00021803,2]
[349622931,1737330658929,-500.0,0.00021803,2]
[349622932,1737330658938,-500.0,0.00021803,2]
[349622933,1737330658947,-500.0,0.00021803,2]
[349622934,1737330658959,-500.0,0.00021803,2]
[349622935,1737330658969,-500.0,0.00021803,2]
[349622936,1737330658978,-500.0,0.00021803,2]
[349622937,1737330658987,-541.4,0.00021803,2]
[349622938,1737330658997,-648.63,0.00021803,2]
[349622939,1737330659007,-500.0,0.00021803,2]
[349622940,1737330659017,-500.0,0.00021803,2]
[349622941,1737330659027,-500.0,0.00021803,2]
[349622942,1737330659037,-1060.96,0.00021803,2]
[349622943,1737330659046,-500.0,0.00021803,2]
[349622944,1737330659055,-500.0,0.00021803,2]
[349622945,1737330659066,-500.0,0.00021803,2]
[349622946,1737330659074,-799.96,0.00021803,2]
[349622947,1737330659083,-500.0,0.00021804,2]
[349622948,1737330659092,-500.0,0.00021804,2]
[349622949,1737330659103,-500.0,0.00021824,2]
[349622950,1737330659112,-500.0,0.00021856,2]
[349622951,1737330659121,-500.0,0.00021856,2]
[349622952,1737330659131,-500.0,0.00021856,2]
[349622953,1737330659141,-500.0,0.00021856,2]
[349622954,1737330659151,-513.16,0.00021856,2]
[349622955,1737330659160,-500.0,0.00021856,2]
[349622956,1737330659170,-2716.12,0.00021856,2]
[349622957,1737330659179,-697.66,0.00021856,2]
[349622958,1737330659188,-2200.29,0.00021856,2]
[349622959,1737330659198,-500.0,0.00021856,2]
[349622960,1737330659210,-571.27,0.00021856,2]
[349622961,1737330659219,-500.0,0.00021856,2]
[349622962,1737330659229,-500.0,0.00021856,2]
[349622963,1737330659238,-500.0,0.00021856,2]
[349622964,1737330659247,-1108.47,0.00021856,2]
[349622965,1737330659257,-500.0,0.00021856,2]
[349622966,1737330659267,-1219.2,0.00021856,2]
[349622967,1737330659276,-524.65,0.00021857,2]
[349622968,1737330659286,-500.0,0.00021857,2]
[349622969,1737330659295,-510.28,0.00021857,2]
[349622970,1737330659304,-500.0,0.00021857,2]
[349622971,1737330659313,-522.28,0.00021857,2]
[349622972,1737330659322,-500.0,0.00021857,2]
[349622973,1737330659331,-500.0,0.00021857,2]
[349622974,1737330659340,-500.0,0.00021857,2]
[349622975,1737330659349,-500.0,0.00021857,2]
[349622976,1737330659358,-500.0,0.00021857,2]
[349622977,1737330659367,-500.0,0.00021857,2]
[349622978,1737330659377,-500.0,0.00021857,2]
[349622979,1737330659387,-500.0,0.00021857,2]
[349622980,1737330659396,-500.0,0.00021857,2]
[349622981,1737330659405,-500.0,0.00021857,2]
[349622982,1737330659414,-500.0,0.00021857,2]
[349622983,1737330659423,-500.0,0.00021857,2]
[349622984,1737330659432,-500.0,0.00021857,2]
[349622985,1737330659441,-500.0,0.00021857,2]
[349622986,1737330659450,-500.0,0.00021857,2]
[349622987,1737330659463,-500.0,0.00021857,2]
[349622988,1737330659473,-500.0,0.00021857,2]
[349622989,1737330659482,-500.0,0.00021857,2]
[349622990,1737330659491,-500.0,0.00021857,2]
[349622991,1737330659500,-500.0,0.00021857,2]
[349622992,1737330659509,-500.0,0.00021857,2]
[349622993,1737330659519,-500.0,0.00021857,2]
[349622994,1737330659528,-500.0,0.00021857,2]
[349622995,1737330659537,-500.0,0.00021857,2]
[349622996,1737330659546,-500.0,0.00021857,2]
[349622997,1737330659556,-500.0,0.00021857,2]
[349622998,1737330659565,-500.0,0.00021857,2]
[349622999,1737330659575,-1308.99,0.00021857,2]
[349623000,1737330659585,-500.0,0.00021857,2]
[349623001,1737330659594,-606.63,0.00021857,2]
[349623002,1737330659604,-500.0,0.00021857,2]
[349623003,1737330659613,-1986.62,0.00021857,2]
[349623004,1737330659626,-500.0,0.00021857,2]
[349623005,1737330659637,-500.0,0.00021857,2]
[349623006,1737330659647,-1009.8,0.00021857,2]
[349623007,1737330659657,-2149.63,0.00021857,2]
[349623008,1737330659667,-500.0,0.00021857,2]
[349623009,1737330659677,-713.89,0.00021857,2]
[349623010,1737330659686,-884.71,0.00021857,2]
[349623011,1737330659696,-500.0,0.00021857,2]
[349623012,1737330659710,-500.0,0.00021857,2]
[349623013,1737330659721,-2029.73,0.00021857,2]
[349623014,1737330659731,-500.0,0.00021857,2]
[349623015,1737330659740,-500.0,0.00021857,2]
[349623016,1737330659749,-640.47,0.00021857,2]
[349623017,1737330659760,-500.0,0.00021857,2]
[349623018,1737330659769,-1116.22,0.00021857,2]
[349623019,1737330659779,-1752.28,0.00021857,2]
[349623020,1737330659788,-794.49,0.00021857,2]
[349623021,1737330659797,-500.0,0.00021857,2]
[349623022,1737330659807,-3012.1,0.00021857,2]
[349623023,1737330659818,-687.59,0.00021857,2]
[349623024,1737330659828,-742.97,0.00021857,2]
[349623025,1737330659838,-1315.8,0.00021857,2]
[349623026,1737330659847,-500.0,0.00021857,2]
[349623027,1737330659858,-738.6,0.00021857,2]
[349623028,1737330659867,-1337.5,0.00021857,2]
[349623029,1737330659877,-538.08,0.00021857,2]
[349623030,1737330659889,-1154.28,0.00021857,2]
[349623031,1737330659911,-586.93,0.00021857,2]
[349623032,1737330659924,-2419.72,0.00021857,2]
[349623033,1737330659933,-1243.34,0.00021857,2]
[349623034,1737330659944,-684.1,0.00021857,2]
[349623035,1737330659957,-1396.29,0.00021857,2]
[349623036,1737330659966,-765.77,0.00021857,2]
[349623037,1737330659976,-500.0,0.00021857,2]
[349623038,1737330659985,-554.76,0.00021857,2]
[349623039,1737330659994,-629.46,0.00021857,2]
[349623040,1737330660004,-500.0,0.00021857,2]
[349623041,1737330660014,-713.57,0.00021857,2]
[349623042,1737330660023,-500.0,0.00021857,2]
[349623043,1737330660032,-2188.94,0.00021857,2]
[349623044,1737330660042,-756.18,0.00021857,2]
[349623045,1737330660051,-500.0,0.00021857,2]
[349623046,1737330660061,-500.0,0.00021858,2]
[349623047,1737330660071,-500.0,0.00021858,2]
[349623048,1737330660080,-500.0,0.00021858,2]
[349623049,1737330660090,-500.0,0.00021858,2]
[349623050,1737330660099,-500.0,0.00021858,2]
[349623051,1737330660108,-500.0,0.00021858,2]
[349623052,1737330660118,-500.0,0.00021858,2]
[349623053,1737330660127,-500.0,0.00021858,2]
[349623054,1737330660137,-298.98770615,0.00021858,2]
[349623055,1737330660146,-500.0,0.00021858,2]
[349623056,1737330660155,-500.0,0.00021858,2]
[349623057,1737330660164,-500.0,0.00021858,2]
[349623058,1737330660174,-500.0,0.00021858,2]
[349623059,1737330660183,-500.0,0.00021858,2]
[349623060,1737330660192,-150.0,0.00021863,2]
[349623061,1737330660202,-500.0,0.00021883,2]
[349623062,1737330660216,-500.0,0.00021883,2]
[349623063,1737330660225,-500.0,0.00021883,2]
[349623064,1737330660235,-150.0,0.00021889,2]
[349623065,1737330660245,-2000.3506,0.0002189,2]
[349623066,1737330660255,-2000.0,0.0002189,2]
[349623067,1737330660265,-1470.0,0.000219,2]
[349623068,1737330660275,-521.62737008,0.000219,2]
[349623069,1737330660286,-337.14997497,0.000219,2]
[349623070,1737330660296,-166.80627001,0.000219,2]
[349623071,1737330660306,-163.3233948,0.000219,2]
[349623072,1737330660316,-605.77405721,0.000219,2]
[349623073,1737330660325,-500.0,0.00021917,2]
[349623074,1737330660334,-500.0,0.00021917,2]
[349623075,1737330660344,-500.0,0.00021917,2]
[349623076,1737330660353,-500.0,0.00021917,2]
[349623077,1737330660362,-500.0,0.00021917,2]
[349623078,1737330660371,-500.0,0.00021917,2]
[349623079,1737330660381,-500.0,0.00021917,2]
[349623080,1737330660390,-162.8410778,0.00021917,2]
[349623081,1737330660400,-500.0,0.00021917,2]
[349623082,1737330660410,-500.0,0.00021917,2]
[349623083,1737330660419,-500.0,0.00021917,2]
[349623084,1737330660429,-500.0,0.00021917,2]
[349623085,1737330660440,-500.0,0.00021917,2]
[349623086,1737330660449,-150.0,0.00021918,2]
[349623087,1737330660465,-4000.0,0.00021918,2]
[349623088,1737330660474,-500.0,0.00021937,2]
[349623089,1737330660483,-15347.46012505,0.00021973,2]
[349623090,1737330660983,-286.200999,0.00020159,2]
[349623091,1737330660995,-213.799001,0.00020159,2]
[349623092,1737330661004,-16512.93842879,0.00021973,2]
[349623093,1737330661015,-1004.1,0.00021973,2]
[349623094,1737330661026,-722.1506333,0.00021973,2]
[349623095,1737330661162,-254.56345769,0.00021962,2]
[349623096,1737330661171,-24790.69339701,0.00021973,2]
[349623097,1737330661182,-10004.0,0.00021973,2]
[349623098,1737330661314,-1493.88555366,0.00015483,2]
[349623099,1737330661326,-500.0,0.00019939,2]
[349623100,1737330661335,-508.15678376,0.00020159,2]
[349623101,1737330661344,-391.32788134,0.00020213,2]
[349623102,1737330661354,-1320.42666123,0.00021973,2]
[349623103,1737330661364,-3345.81390733,0.00021973,2]
[349623104,1737330661375,-1001.3,0.00021973,2]
[349623105,1737330661386,-6089.3367146,0.00021973,2]
[349623106,1737330661400,-559.562,0.00021973,2]
[349623107,1737330661413,-879.58895795,0.00021973,2]
[349623108,1737330661423,-361.9449985,0.00021973,2]
[349623109,1737330661434,-382.54633872,0.00021973,2]
[349623110,1737330661445,-785.13783752,0.00021973,2]
[349623111,1737330661457,-1292.0,0.00021973,2]
[349623112,1737330661468,-500.0,0.00021973,2]
[349623113,1737330661477,-3954.0,0.00021973,2]
[349623114,1737330661486,-500.0,0.00021999,2]
[349623115,1737330661495,-995.9933,0.00021999,2]